fUSD/lending_fUSD_20260224
["ID","MTS","AMOUNT","RATE_DAILY","PERIOD"]
[406561686,1771944646961,-503.3459029,0.000151,2]
[406561687,1771944646970,-500.0,0.000151,2]
[406561688,1771944646980,-186.88471708,0.000151,2]
[406561689,1771944646989,-170.38160206,0.000151,2]
[406561690,1771944646999,-501.44667058,0.000151,2]
[406561691,1771944647008,-209.6165406,0.000151,2]
[406561692,1771944647017,-500.0,0.000151,2]
[406561693,1771944647027,-500.0,0.000151,2]
[406561694,1771944647036,-168.61283304,0.000151,2]
[406561695,1771944647046,-501.93759306,0.000151,2]
[406561696,1771944647056,-500.0,0.000151,2]
[406561697,1771944647065,-503.60394883,0.000151,2]
[406561698,1771944647075,-487.94127816,0.000151,2]
[406561699,1771944647085,-500.0,0.000151,2]
[406561700,1771944647094,-500.0,0.000151,2]
[406561701,1771944647105,-500.0,0.000151,2]
[406561702,1771944647114,-566.19,0.00015137,2]
[406561703,1771944647123,-566.19,0.00015137,2]
[406561704,1771944647133,-566.19,0.00015137,2]
[406561705,1771944647142,-566.19,0.00015137,2]
[406561706,1771944647151,-566.42459131,0.00015137,2]
[406561707,1771944647161,-917.0,0.00015137,2]
[406561708,1771944647170,-917.0,0.00015137,2]
[406561709,1771944647179,-917.0,0.00015137,2]
[406561710,1771944647188,-917.0,0.00015137,2]
[406561711,1771944647197,-917.17986232,0.00015137,2]
[406561712,1771944647207,-506.35812357,0.00015137,2]
[406561713,1771944647216,-523.24,0.00015137,2]
[406561714,1771944647226,-523.24,0.00015137,2]
[406561715,1771944647235,-523.24,0.00015137,2]
[406561716,1771944647244,-523.24,0.00015137,2]
[406561717,1771944647253,-523.29265749,0.00015137,2]
[406561718,1771944647262,-858.26,0.00015137,2]
[406561719,1771944647272,-858.26,0.00015137,2]
[406561720,1771944647281,-858.26,0.00015137,2]
[406561721,1771944647291,-858.26,0.00015137,2]
[406561722,1771944647300,-858.47544103,0.00015137,2]
[406561723,1771944647309,-500.0,0.00015137,2]
[406561724,1771944647319,-500.0,0.00015137,2]
[406561725,1771944647328,-500.0,0.00015137,2]
[406561726,1771944647337,-339.10383034,0.00015137,2]
[406561727,1771944647347,-1227.65,0.00015175,2]
[406561728,1771944647356,-500.0,0.0001521,2]
[406561729,1771944647365,-474.12,0.00015233,2]
[406561730,1771944647376,-160.0,0.00015271,2]
[406561731,1771944647385,-173.87087054,0.00015271,2]
[406561732,1771944647395,-150.0,0.00015487,2]
[406561733,1771944647404,-474.12,0.00015507,2]
[406561734,1771944647413,-6453.0,0.00015616,2]
[406561735,1771944647422,-2129.0,0.00015622,2]
[406561736,1771944647431,-502.25935248,0.00015648,2]
[406561737,1771944647441,-483.17728486,0.00015648,2]
[406561738,1771944647450,-500.0,0.00015648,2]
[406561739,1771944647459,-501.53221813,0.00015648,2]
[406561740,1771944647469,-1092.86766843,0.00015648,2]
[406561741,1771944647479,-1000.0,0.00015648,2]
[406561742,1771944647488,-1000.0,0.00015648,2]
[406561743,1771944647502,-1000.0,0.00015648,2]
[406561744,1771944647511,-1028.84101903,0.00015648,2]
[406561745,1771944647521,-1000.0,0.00015648,2]
[406561746,1771944647530,-436.95947364,0.00015648,2]
[406561747,1771944647542,-1000.0,0.00015648,2]
[406561748,1771944647551,-1000.0,0.00015648,2]
[406561749,1771944647561,-1000.0,0.00015648,2]
[406561750,1771944647570,-583.60061699,0.00015648,2]
[406561751,1771944647580,-243.69912151,0.00015648,2]
[406561752,1771944647592,-1000.0,0.00015648,2]
[406561753,1771944647602,-607.84,0.00015781,2]
[406561754,1771944647612,-150.0,0.00016,2]
[406561755,1771944647622,-380.32235674,0.00016,2]
[406561756,1771944647633,-2725.04997657,0.00016092,2]
[406561757,1771944647643,-150.0,0.00016096,2]
[406561758,1771944647652,-380.32235674,0.000161,2]
[406561759,1771944647662,-9999.99,0.00016116,2]
[406561760,1771944647672,-1500.0,0.00016196,2]
[406561761,1771944647682,-1390.05507377,0.00016196,2]
[406561762,1771944647691,-602.53164684,0.00016196,2]
[406561763,1771944647700,-1500.0,0.00016196,2]
[406561764,1771944647710,-693.71551848,0.00016196,2]
[406561765,1771944647720,-1500.0,0.00016196,2]
[406561766,1771944647729,-1500.0,0.00016196,2]
[406561767,1771944647739,-1500.0,0.00016196,2]
[406561768,1771944647899,-591.67,0.00016199,2]
[406561769,1771944647909,-380.32235674,0.000162,2]
[406561770,1771944647919,-454.1749961,0.00016236,2]
[406561771,1771944647929,-454.1749961,0.00016397,2]
[406561772,1771944647939,-900.0,0.00016438,2]
[406561773,1771944647949,-150.73989367,0.00016438,2]
[406561774,1771944647958,-20000.0,0.00016438,2]
[406561775,1771944647967,-33639.79686262,0.00016447,2]
[406561776,1771944647976,-28680.03179139,0.0001648,2]
[406561777,1771944647986,-454.1749961,0.00016558,2]
[406561778,1771944647995,-691.28,0.0001658,2]
[406561779,1771944648005,-512.1,0.0001658,2]
[406561780,1771944648014,-503.05357398,0.00016744,2]
[406561781,1771944648024,-2000.0,0.00016744,2]
[406561782,1771944648034,-932.65135931,0.00016744,2]
[406561783,1771944648043,-1255.82806005,0.00016744,2]
[406561784,1771944648053,-1227.65,0.00016861,2]
[406561785,1771944648062,-549.94,0.00016998,2]
[406561786,1771944648072,-657.39,0.00016998,2]
[406561787,1771944648081,-1423.69,0.00016998,2]
[406561788,1771944648091,-591.67,0.00016999,2]
[406561789,1771944648100,-591.67,0.00016999,2]
[406561790,1771944648111,-591.67,0.00016999,2]
[406561791,1771944648120,-591.67,0.00016999,2]
[406561792,1771944648130,-591.71706108,0.00016999,2]
[406561793,1771944648140,-5882.54936,0.00017064,7]
[406561794,1771944648150,-461.85,0.00017152,2]
[406561795,1771944648159,-461.89325126,0.00017152,2]
[406561796,1771944648169,-9035.0,0.00017177,2]
[406561797,1771944648178,-2851.0,0.00017183,2]
[406561798,1771944648188,-1200.21212036,0.00017292,2]
[406561799,1771944648198,-461.85,0.00017366,2]
[406561800,1771944648207,-1052.0,0.00017377,2]
[406561801,1771944648216,-1052.0,0.00017407,2]
[406561802,1771944648226,-1052.0,0.00017529,2]
[406561803,1771944648235,-1052.0,0.0001753,2]
[406561804,1771944648245,-461.85,0.00017581,2]
[406561805,1771944648255,-1052.0,0.00017709,2]
[406561806,1771944648264,-1052.0,0.00017724,2]
[406561807,1771944648274,-1052.0,0.0001778,2]
[406561808,1771944648284,-461.85,0.00017795,2]
[406561809,1771944648293,-1097.40380822,0.00017808,2]
[406561810,1771944648303,-1097.40380822,0.00017808,2]
[406561811,1771944648313,-1097.40380822,0.00017808,2]
[406561812,1771944648323,-1097.40380822,0.00017808,2]
[406561813,1771944648332,-1097.40380822,0.00017808,2]
[406561814,1771944648342,-1097.40380822,0.00017808,2]
[406561815,1771944648352,-1097.40380822,0.00017808,2]
[406561816,1771944648361,-1097.40380822,0.00017808,2]
[406561817,1771944648371,-1097.40380822,0.00017808,2]
[406561818,1771944648381,-1097.40380822,0.00017808,2]
[406561819,1771944648391,-1097.40380822,0.00017808,2]
[406561820,1771944648400,-1097.40380822,0.00017808,2]
[406561821,1771944648410,-1097.40380822,0.00017808,2]
[406561822,1771944648420,-1097.40380822,0.00017808,2]
[406561823,1771944648430,-1097.40380822,0.00017808,2]
[406561824,1771944648439,-1097.40380822,0.00017808,2]
[406561825,1771944648449,-1097.40380822,0.00017808,2]
[406561826,1771944648458,-1496.45973848,0.00017808,2]
[406561827,1771944648468,-1496.45973848,0.00017808,2]
[406561828,1771944648478,-1496.45973848,0.00017808,2]
[406561829,1771944648487,-1496.45973848,0.00017808,2]
[406561830,1771944648499,-1496.45973848,0.00017808,2]
[406561831,1771944648508,-1496.45973848,0.00017808,2]
[406561832,1771944648519,-1496.45973848,0.00017808,2]
[406561833,1771944648529,-1496.45973848,0.00017808,2]
[406561834,1771944648542,-1496.45973848,0.00017808,2]
[406561835,1771944648552,-1496.45973848,0.00017808,2]
[406561836,1771944648562,-800.0,0.00017808,2]
[406561837,1771944648572,-1052.0,0.00017866,2]
[406561838,1771944648583,-500.0,0.0001791,4]
[406561839,1771944648592,-200.0,0.00017937,2]
[406561840,1771944648602,-461.85,0.00018009,2]
[406561841,1771944648612,-1052.0,0.00018035,2]
[406561842,1771944648622,-1052.0,0.00018038,2]
[406561843,1771944648632,-160.0,0.000182,30]
[406561844,1771944648642,-100485.90259432,0.0001821,10]
[406561845,1771944648651,-1052.0,0.00018265,2]
[406561846,1771944648662,-1052.0,0.00018308,2]
[406561847,1771944648671,-1052.0,0.0001833,2]
[406561848,1771944648681,-1052.0,0.00018377,2]
[406561849,1771944648691,-1052.0,0.00018424,2]
[406561850,1771944648701,-1052.0,0.00018478,2]
[406561851,1771944648710,-1227.65,0.00018547,2]
[406561852,1771944648720,-1052.0,0.00018597,2]
[406561853,1771944648729,-33639.79686262,0.00018697,2]
[406561854,1771944648739,-1052.0,0.00018732,2]
[406561855,1771944648748,-28680.03179139,0.00018741,2]
[406561856,1771944648759,-1052.0,0.00018814,2]
[406561857,1771944648768,-1052.0,0.00018838,2]
[406561858,1771944648777,-1052.0,0.00018887,2]
[406561859,1771944648787,-4908.0,0.00018895,2]
[406561860,1771944648797,-800.0,0.00018904,2]
[406561861,1771944648806,-1052.0,0.0001905,2]
[406561862,1771944648816,-1052.0,0.00019072,2]
[406561863,1771944648825,-1052.0,0.00019074,2]
[406561864,1771944648835,-1052.0,0.00019087,2]
[406561865,1771944648844,-500.0,0.00019646,5]
[406561866,1771944648854,-1227.65,0.00020234,2]
[406561867,1771944648863,-500.0,0.00020609,6]
[406561868,1771944648872,-33639.79686262,0.00020946,2]
[406561869,1771944648881,-28680.03179139,0.00021001,2]
[406561870,1771944648891,-159.62910539,0.00021298,2]
[406561871,1771944648900,-169.2,0.00021713,2]
[406561872,1771944648910,-15357.35,0.000227,2]
[406561873,1771944648919,-691.28,0.00022752,2]
[406561874,1771944648928,-691.28,0.00022752,2]
[406561875,1771944648938,-691.28,0.00022752,2]
[406561876,1771944648948,-691.28,0.00022752,2]
[406561877,1771944648957,-691.30338985,0.00022752,2]
[406561878,1771944648967,-512.1,0.00022752,2]
[406561879,1771944648976,-512.1,0.00022752,2]
[406561880,1771944648986,-512.1,0.00022752,2]
[406561881,1771944648996,-512.1,0.00022752,2]
[406561882,1771944649006,-512.33,0.00022752,2]
[406561883,1771944649016,-13725.948506,0.00022753,30]
[406561884,1771944649026,-160.0,0.00023,2]
[406561885,1771944649036,-33639.79686262,0.00023196,2]
[406561886,1771944649045,-168.86,0.00023228,8]
[406561887,1771944649054,-28680.03179139,0.00023262,2]
[406561888,1771944649064,-500.0,0.00023309,9]
[406561889,1771944649073,-500.0,0.00023539,9]
[406561890,1771944649083,-454.1749961,0.00024113,2]
[406561891,1771944649092,-150.0,0.00024658,2]
[406561892,1771944649102,-3004.69472249,0.00025,120]
[406561893,1771944649111,-33639.79686262,0.00025446,2]
[406561894,1771944649122,-28680.03179139,0.00025523,2]
[406561895,1771944649131,-150.0,0.0002589,2]
[406561896,1771944649140,-500.0,0.00026008,11]
[406561897,1771944649150,-200.0,0.00026535,13]
[406561898,1771944649159,-500.0,0.00026546,14]
[406561899,1771944649168,-150.0,0.00027185,2]
[406561900,1771944649178,-160.29288222,0.00027397,2]
[406561901,1771944649188,-1000.0,0.00027397,20]
[406561902,1771944649199,-1669.66752904,0.00027539,2]
[406561903,1771944649208,-3169.73096421,0.00027539,2]
[406561904,1771944649218,-33639.79686262,0.00027695,2]
[406561905,1771944649227,-28680.03179139,0.00027783,2]
[406561906,1771944649237,-180.29152412,0.00028109,27]
[406561907,1771944649246,-169.2,0.00028155,2]
[406561908,1771944649256,-500.0,0.0002819,18]
[406561909,1771944649265,-451.51007996,0.00028231,27]
[406561910,1771944649279,-150.0,0.00028544,2]
[406561911,1771944649288,-500.0,0.00028708,14]
[406561912,1771944649298,-549.94,0.00029078,120]
[406561913,1771944649307,-657.39,0.00029078,2]
[406561914,1771944649316,-1423.69,0.00029078,120]
[406561915,1771944649326,-1852.42,0.00029079,2]
[406561916,1771944649335,-150.0,0.00029239,10]
[406561917,1771944649344,-158.38200706,0.00029239,10]
[406561918,1771944649354,-500.0,0.00029835,23]
[406561919,1771944649363,-200.0,0.00029842,22]
[406561920,1771944649373,-900.0,0.000299,10]
[406561921,1771944649382,-33639.79686262,0.00029945,2]
[406561922,1771944649391,-150.0,0.00029971,2]
[406561923,1771944649400,-272.21776658,0.0002999,2]
[406561924,1771944649409,-549.94,0.00029999,120]
[406561925,1771944649419,-549.94,0.00029999,120]
[406561926,1771944649428,-549.94,0.00029999,120]
[406561927,1771944649438,-549.94,0.00029999,120]
[406561928,1771944649447,-549.95461346,0.00029999,120]
[406561929,1771944649457,-657.39,0.00029999,2]
[406561930,1771944649466,-657.39,0.00029999,2]
[406561931,1771944649475,-657.39,0.00029999,2]
[406561932,1771944649484,-657.39,0.00029999,2]
[406561933,1771944649496,-657.4566601,0.00029999,2]
[406561934,1771944649505,-1423.69,0.00029999,120]
[406561935,1771944649514,-1423.69,0.00029999,120]
[406561936,1771944649524,-1423.69,0.00029999,120]
[406561937,1771944649534,-1423.69,0.00029999,120]
[406561938,1771944649544,-1423.74528268,0.00029999,120]
[406561939,1771944649553,-9995.61642194,0.0003,2]
[406561940,1771944649757,-1980.58075856,0.0003,2]
[406561941,1771944649808,-537.41958496,0.0003,2]
[406561942,1771944649822,-1789.13407669,0.0003,2]
[406561943,1771944650165,-380.35434926,0.0003,2]
[406561944,1771944650221,-674.24480859,0.0003,2]
[406561945,1771944650231,-985977.0,0.0003,30]
[406561946,1771944650240,-28680.03179139,0.00030044,2]
[406561947,1771944650249,-832.36491782,0.00031045,30]
[406561948,1771944650259,-152.0,0.00031272,3]
[406561949,1771944650272,-165.11,0.000313,30]
[406561950,1771944650293,-500.0,0.00031408,16]
[406561951,1771944650303,-150.0,0.0003147,2]
[406561952,1771944650312,-159.62910539,0.00031947,2]
[406561953,1771944650322,-879.97177255,0.00031983,30]
[406561954,1771944650331,-184.7789246,0.00032,120]
[406561955,1771944650340,-167.15607918,0.00032,120]
[406561956,1771944650349,-164.01584354,0.00032,120]
[406561957,1771944650359,-1237.69,0.00032,120]
[406561958,1771944650368,-500.0,0.00032841,35]
[406561959,1771944650378,-943.44757886,0.00032921,30]
[406561960,1771944650387,-160.83,0.00033,14]
[406561961,1771944650396,-165.44,0.00033,14]
[406561962,1771944650406,-167.15607918,0.00033,120]
[406561963,1771944650416,-164.01584354,0.00033,120]
[406561964,1771944650425,-150.0,0.00033043,2]
[406561965,1771944650435,-2000.0,0.000332,2]
[406561966,1771944650444,-152.0,0.00033626,4]
[406561967,1771944650454,-265.74,0.000338,14]
[406561968,1771944650464,-167.15607918,0.000339,120]
[406561969,1771944650473,-164.01584354,0.000339,120]
[406561970,1771944650482,-12340.0,0.000339,2]
[406561971,1771944650492,-500.0,0.00034107,18]
[406561972,1771944650503,-564.28,0.000342,2]
[406561973,1771944650513,-150.0,0.00034585,2]
[406561974,1771944650522,-150.0,0.00034586,2]
[406561975,1771944650532,-150.0,0.00034587,2]
[406561976,1771944650545,-150.0,0.00034588,2]
[406561977,1771944650556,-150.0,0.00034589,2]
[406561978,1771944650566,-150.0,0.0003459,2]
[406561979,1771944650575,-150.0,0.00034591,2]
[406561980,1771944650586,-150.0,0.00034592,2]
[406561981,1771944650595,-150.0,0.00034593,2]
[406561982,1771944650604,-150.0,0.00034594,2]
[406561983,1771944650614,-150.0,0.00034595,2]
[406561984,1771944650624,-150.0,0.00034596,2]
[406561985,1771944650633,-206.290511,0.00034597,2]
[406561986,1771944650642,-5531.0,0.000346,3]
[406561987,1771944650652,-150.0,0.00034696,2]
[406561988,1771944650661,-2179.954,0.00034775,40]
[406561989,1771944650670,-205.005,0.00034775,40]
[406561990,1771944650680,-1500.0,0.00034795,2]
[406561991,1771944650689,-1118.00604621,0.00034797,30]
[406561992,1771944650699,-165.11,0.000348,30]
[406561993,1771944650708,-167.15607918,0.00035,120]
[406561994,1771944650718,-164.01584354,0.00035,120]
[406561995,1771944650727,-5531.0,0.000353,5]
[406561996,1771944650737,-465.0,0.00035461,30]
[406561997,1771944650747,-1213.21975568,0.00035735,30]
[406561998,1771944650756,-152.0,0.00035981,5]
[406561999,1771944650765,-160.83,0.000364,14]
[406562000,1771944650793,-165.44,0.000364,14]
[406562001,1771944650802,-166.66,0.00036411,30]
[406562002,1771944650812,-150.0,0.0003643,2]
[406562003,1771944650822,-281.98489715,0.00036598,2]
[406562004,1771944650831,-1371.90927145,0.00036673,30]
[406562005,1771944650842,-500.0,0.00036735,45]
[406562006,1771944650851,-2000.0,0.000368,2]
[406562007,1771944650860,-500.0,0.00036807,21]
[406562008,1771944650870,-15357.35,0.000369,2]
[406562009,1771944650879,-251.0,0.000369,120]
[406562010,1771944650888,-168.0,0.000369,120]
[406562011,1771944650898,-166.66,0.00037177,30]
[406562012,1771944650907,-181.61613088,0.000372,120]
[406562013,1771944650916,-1594.07459353,0.00037611,30]
[406562014,1771944650926,-3330.24181074,0.00037725,120]
[406562015,1771944650935,-550.0,0.00037725,120]
[406562016,1771944650944,-166.66,0.00037944,30]
[406562017,1771944650954,-150.0,0.00038252,2]
[406562018,1771944650963,-152.0,0.00038336,6]
[406562019,1771944650972,-165.11,0.000384,30]
[406562020,1771944650980,-1625.81249669,0.00038549,30]
[406562021,1771944650989,-160.83,0.000386,14]
[406562022,1771944650998,-165.44,0.000386,14]
[406562023,1771944651007,-166.66,0.0003871,30]
[406562024,1771944651018,-251.0,0.00038745,120]
[406562025,1771944651027,-168.0,0.00038745,120]
[406562026,1771944651036,-398.25018667,0.00039139,2]
[406562027,1771944651045,-618.0,0.00039153,2]
[406562028,1771944651054,-1040.0,0.00039153,2]
[406562029,1771944651063,-3496.0,0.00039153,2]
[406562030,1771944651072,-1339.0,0.00039153,2]
[406562031,1771944651082,-150.597,0.00039153,2]
[406562032,1771944651091,-1277.0,0.00039153,2]
[406562033,1771944651101,-1218.319,0.00039153,2]
[406562034,1771944651111,-1032.444,0.00039153,2]
[406562035,1771944651120,-5405.0,0.00039153,2]
[406562036,1771944651130,-2455.0,0.00039153,2]
[406562037,1771944651139,-5980.0,0.00039153,2]
[406562038,1771944651148,-166.66,0.00039477,30]
[406562039,1771944651157,-1879.71572193,0.00039487,30]
[406562040,1771944651166,-500.0,0.00039506,23]
[406562041,1771944651175,-265.74,0.000396,14]
[406562042,1771944651184,-202.69,0.00039873,7]
[406562043,1771944651194,-154.0,0.0004,120]
[406562044,1771944651203,-150.0,0.00040165,2]
[406562045,1771944651212,-166.66,0.00040243,30]
[406562046,1771944651221,-1974.92943139,0.00040425,30]
[406562047,1771944651230,-2000.0,0.000405,2]
[406562048,1771944651239,-251.0,0.00040682,120]
[406562049,1771944651248,-168.0,0.00040682,120]
[406562050,1771944651258,-152.0,0.0004069,7]
[406562051,1771944651267,-6623.03809716,0.00040898,5]
[406562052,1771944651295,-30720.69031569,0.00040977,7]
[406562053,1771944651304,-160.83,0.00041,14]
[406562054,1771944651314,-165.44,0.00041,14]
[406562055,1771944651323,-300.0,0.00041016,2]
[406562056,1771944651331,-301.55927827,0.00041016,2]
[406562057,1771944651341,-443.65,0.00041016,2]
[406562058,1771944651350,-300.0,0.00041016,2]
[406562059,1771944651359,-301.55927827,0.00041016,2]
[406562060,1771944651368,-75961.0,0.00041049,60]
[406562061,1771944651378,-297.553564,0.00041096,120]
[406562062,1771944651387,-297.553564,0.00041096,120]
[406562063,1771944651395,-297.553564,0.00041096,120]
[406562064,1771944651404,-297.553564,0.00041096,120]
[406562065,1771944651414,-165.11,0.000411,30]
[406562066,1771944651424,-154.0,0.000413,120]
[406562067,1771944651434,-500.0,0.00041346,68]
[406562068,1771944651444,-2133.61894716,0.00041363,30]
[406562069,1771944651454,-564.28,0.000418,30]
[406562070,1771944651464,-151.0,0.00041921,2]
[406562071,1771944651473,-156.587,0.00041921,2]
[406562072,1771944651482,-162.380719,0.00041921,2]
[406562073,1771944651492,-159.89501112,0.00041921,2]
[406562074,1771944651506,-566.61,0.00042153,2]
[406562075,1771944651515,-3496.0,0.00042153,2]
[406562076,1771944651524,-1339.0,0.00042153,2]
[406562077,1771944651534,-1277.0,0.00042153,2]
[406562078,1771944651546,-1210.0,0.00042153,2]
[406562079,1771944651556,-920.0,0.00042153,2]
[406562080,1771944651565,-5405.0,0.00042153,2]
[406562081,1771944651574,-2455.0,0.00042153,2]
[406562082,1771944651584,-539.334,0.00042153,2]
[406562083,1771944651594,-150.0,0.00042173,120]
[406562084,1771944651603,-500.0,0.00042206,26]
[406562085,1771944651612,-294.68215807,0.00042291,60]
[406562086,1771944651622,-15357.35,0.000423,2]
[406562087,1771944651632,-2260.57055978,0.00042301,30]
[406562088,1771944651641,-75961.0,0.00042402,60]
[406562089,1771944651650,-289.36431614,0.0004251,60]
[406562090,1771944651659,-800.29,0.00042546,120]
[406562091,1771944651669,-527.94,0.00042546,30]
[406562092,1771944651678,-154.0,0.000426,120]
[406562093,1771944651687,-251.0,0.00042716,120]
[406562094,1771944651697,-168.0,0.00042716,120]
[406562095,1771944651706,-289.36431614,0.00042784,60]
[406562096,1771944651716,-229.2925,0.00042912,2]
[406562097,1771944651726,-152.0,0.00043045,8]
[406562098,1771944651736,-200.0,0.00043068,120]
[406562099,1771944651745,-200.0,0.00043068,120]
[406562100,1771944651757,-160.83,0.000431,14]
[406562101,1771944651766,-165.44,0.000431,14]
[406562102,1771944651795,-241.13693012,0.00043112,60]
[406562103,1771944651805,-2260.57055978,0.00043239,30]
[406562104,1771944651814,-1613.931096,0.0004332,2]
[406562105,1771944651824,-206.4831,0.00043345,2]
[406562106,1771944651833,-350.0,0.00043349,3]
[406562107,1771944651842,-350.0,0.00043389,6]
[406562108,1771944651851,-75961.0,0.00043755,60]
[406562109,1771944651861,-183.4739,0.00043783,2]
[406562110,1771944651871,-165.11,0.000438,30]
[406562111,1771944651880,-350.0,0.00043832,3]
[406562112,1771944651889,-156.34,0.00043836,120]
[406562113,1771944651899,-500.0,0.00043958,60]
[406562114,1771944651908,-229.2925,0.00043985,2]
[406562115,1771944651918,-154.0,0.00044,120]
[406562116,1771944651927,-150.0,0.00044158,120]
[406562117,1771944651936,-2260.57055978,0.00044177,30]
[406562118,1771944651945,-2000.0,0.000442,2]
[406562119,1771944651954,-25000.0,0.00044228,15]
[406562120,1771944651963,-2858.18490911,0.00044232,2]
[406562121,1771944651972,-218.85582303,0.00044234,120]
[406562122,1771944651981,-260.32,0.00044237,120]
[406562123,1771944651991,-25000.0,0.00044237,15]
[406562124,1771944652000,-25000.0,0.00044246,15]
[406562125,1771944652010,-25000.0,0.00044246,15]
[406562126,1771944652020,-150.0,0.00044281,120]
[406562127,1771944652029,-350.0,0.00044322,3]
[406562128,1771944652038,-126049.27001494,0.000445,2]
[406562129,1771944652048,-500.0,0.00044747,2]
[406562130,1771944652057,-265.74,0.000448,14]
[406562131,1771944652067,-168.0,0.00044852,120]
[406562132,1771944652076,-183.4739,0.00044878,2]
[406562133,1771944652086,-500.0,0.00044905,28]
[406562134,1771944652095,-1855.2223,0.00045,2]
[406562135,1771944652104,-1000.0,0.00045,120]
[406562136,1771944652113,-2000.0,0.00045,120]
[406562137,1771944652122,-2370.53,0.00045,120]
[406562138,1771944652131,-176.0,0.00045,90]
[406562139,1771944652141,-1252.5146465,0.00045,10]
[406562140,1771944652150,-150.0,0.00045056,30]
[406562141,1771944652159,-500.24398193,0.00045056,30]
[406562142,1771944652168,-150.0,0.00045056,30]
[406562143,1771944652178,-3161.20814662,0.00045056,30]
[406562144,1771944652187,-150.0,0.00045056,30]
[406562145,1771944652197,-198.20235507,0.00045056,30]
[406562146,1771944652207,-19044.84189385,0.00045068,15]
[406562147,1771944652216,-346.16362503,0.00045068,2]
[406562148,1771944652225,-284.49243142,0.00045068,120]
[406562149,1771944652235,-500.0,0.00045068,120]
[406562150,1771944652244,-500.0,0.00045068,120]
[406562151,1771944652254,-507.10875232,0.00045068,120]
[406562152,1771944652265,-150.0,0.00045068,120]
[406562153,1771944652291,-150.0,0.00045068,120]
[406562154,1771944652301,-2705.0,0.00045068,2]
[406562155,1771944652310,-150.0,0.00045068,120]
[406562156,1771944652320,-150.0,0.00045068,120]
[406562157,1771944652329,-2705.0,0.00045068,2]
[406562158,1771944652339,-178.51167837,0.00045068,120]
[406562159,1771944652348,-277.65171186,0.00045068,120]
[406562160,1771944652357,-2705.0,0.00045068,2]
[406562161,1771944652368,-2705.0,0.00045068,2]
[406562162,1771944652377,-2705.0,0.00045068,2]
[406562163,1771944652386,-2705.0,0.00045068,2]
[406562164,1771944652396,-155.51282354,0.00045068,120]
[406562165,1771944652405,-2705.0,0.00045068,2]
[406562166,1771944652414,-2705.0,0.00045068,2]
[406562167,1771944652423,-2705.0,0.00045068,2]
[406562168,1771944652432,-500.0,0.00045068,120]
[406562169,1771944652442,-2705.0,0.00045068,2]
[406562170,1771944652452,-2705.0,0.00045068,2]
[406562171,1771944652461,-500.0,0.00045068,120]
[406562172,1771944652471,-2705.0,0.00045068,2]
[406562173,1771944652480,-500.0,0.00045068,120]
[406562174,1771944652489,-2705.0,0.00045068,2]
[406562175,1771944652502,-500.0,0.00045068,120]
[406562176,1771944652512,-2705.0,0.00045068,2]
[406562177,1771944652521,-500.0,0.00045068,120]
[406562178,1771944652532,-2705.0,0.00045068,2]
[406562179,1771944652544,-648.05114672,0.00045068,120]
[406562180,1771944652554,-2705.0,0.00045068,2]
[406562181,1771944652563,-2705.0,0.00045068,2]
[406562182,1771944652574,-2705.0,0.00045068,2]
[406562183,1771944652584,-2705.0,0.00045068,2]
[406562184,1771944652594,-2705.0,0.00045068,2]
[406562185,1771944652603,-2705.0,0.00045068,2]